[Event "Titled Tuesday Blitz November 22 Late 2022"]
[White "Gerbelli Neto, Eduardo"]
[Black "Alexikov, Alexander"]
[WhiteFideId "2103281"]
[BlackFideId "14103958"]
[WhiteElo "2178"]
[BlackElo "2222"]
[Result "1-0"]
[Round "09"]
[TimeControl "180+1"]
[Date "2022.11.23"]
[WhiteClock "0:00:14"]
[BlackClock "0:00:19"]

1. e4 {[%clk 0:02:52]}  c5 {[%clk 0:02:59]} 2. Nc3 {[%clk 0:02:51]}  Nc6 {[%clk 0:02:58]} 3. f4 {[%clk 0:02:52]}  g6 {[%clk 0:02:57]} 4. Nf3 {[%clk 0:02:53]}  Bg7 {[%clk 0:02:57]} 5. Bc4 {[%clk 0:02:54]}  e6 {[%clk 0:02:56]} 6. f5 {[%clk 0:02:54]}  Nge7 {[%clk 0:02:54]} 7. fxe6 {[%clk 0:02:54]}  dxe6 {[%clk 0:02:53]} 8. d3 {[%clk 0:02:55]}  O-O {[%clk 0:02:51]} 9. O-O {[%clk 0:02:56]}  Na5 {[%clk 0:02:48]} 10. Qe1 {[%clk 0:02:41]}  a6 {[%clk 0:02:44]} 11. Bg5 {[%clk 0:02:33]}  Nxc4 {[%clk 0:02:37]} 12. dxc4 {[%clk 0:02:33]}  Qc7 {[%clk 0:02:27]} 13. Qh4 {[%clk 0:02:24]}  f6 {[%clk 0:02:25]} 14. Be3 {[%clk 0:01:59]}  b6 {[%clk 0:02:20]} 15. Rad1 {[%clk 0:01:52]}  Nc6 {[%clk 0:02:10]} 16. Ne2 {[%clk 0:01:38]}  e5 {[%clk 0:01:55]} 17. Nc3 {[%clk 0:01:35]}  Be6 {[%clk 0:01:51]} 18. Nd5 {[%clk 0:01:35]}  Bxd5 {[%clk 0:01:48]} 19. cxd5 {[%clk 0:01:36]}  Nd4 {[%clk 0:01:48]} 20. c3 {[%clk 0:01:32]}  Nxf3+ {[%clk 0:01:45]} 21. gxf3 {[%clk 0:01:28]}  Qd6 {[%clk 0:01:45]} 22. Kh1 {[%clk 0:01:21]}  c4 {[%clk 0:01:37]} 23. Qf2 {[%clk 0:01:04]}  Rab8 {[%clk 0:01:35]} 24. b3 {[%clk 0:00:53]}  cxb3 {[%clk 0:01:31]} 25. axb3 {[%clk 0:00:54]}  f5 {[%clk 0:01:31]} 26. Qd2 {[%clk 0:00:32]}  f4 {[%clk 0:01:14]} 27. Bf2 {[%clk 0:00:31]}  g5 {[%clk 0:01:10]} 28. Rg1 {[%clk 0:00:30]}  Bf6 {[%clk 0:01:07]} 29. c4 {[%clk 0:00:25]}  a5 {[%clk 0:01:02]} 30. Rc1 {[%clk 0:00:25]}  Rbc8 {[%clk 0:00:58]} 31. c5 {[%clk 0:00:18]}  bxc5 {[%clk 0:00:57]} 32. Qxa5 {[%clk 0:00:19]}  Be7 {[%clk 0:00:54]} 33. Rc4 {[%clk 0:00:17]}  Kh8 {[%clk 0:00:51]} 34. Rgc1 {[%clk 0:00:15]}  Qh6 {[%clk 0:00:45]} 35. Bxc5 {[%clk 0:00:13]}  Bxc5 {[%clk 0:00:44]} 36. Rxc5 {[%clk 0:00:14]}  Ra8 {[%clk 0:00:40]} 37. Qd2 {[%clk 0:00:12]}  Qh3 {[%clk 0:00:38]} 38. Qg2 {[%clk 0:00:12]}  Qxg2+ {[%clk 0:00:37]} 39. Kxg2 {[%clk 0:00:12]}  Rfb8 {[%clk 0:00:36]} 40. R1c3 {[%clk 0:00:12]}  Ra3 {[%clk 0:00:34]} 41. Rc8+ {[%clk 0:00:11]}  Rxc8 {[%clk 0:00:33]} 42. Rxc8+ {[%clk 0:00:12]}  Kg7 {[%clk 0:00:30]} 43. d6 {[%clk 0:00:13]}  Ra2+ {[%clk 0:00:29]} 44. Kh3 {[%clk 0:00:13]}  Rd2 {[%clk 0:00:29]} 45. Rc7+ {[%clk 0:00:13]}  Kg6 {[%clk 0:00:27]} 46. d7 {[%clk 0:00:14]}  h5 {[%clk 0:00:27]} 47. b4 {[%clk 0:00:14]}  Kf6 {[%clk 0:00:25]} 48. b5 {[%clk 0:00:13]}  Ke7 {[%clk 0:00:25]} 49. b6 {[%clk 0:00:13]}  Rb2 {[%clk 0:00:25]} 50. b7 {[%clk 0:00:11]}  Rb3 {[%clk 0:00:20]} 51. d8=Q+ {[%clk 0:00:11]}  Kxd8 {[%clk 0:00:19]} 52. Rc8+ {[%clk 0:00:12]}  Kd7 {[%clk 0:00:19]} 53. b8=Q {[%clk 0:00:13]}  Rxb8 {[%clk 0:00:19]} 54. Rxb8 {[%clk 0:00:13]}  Kd6 {[%clk 0:00:19]} 55. Rg8 {[%clk 0:00:14]} 1-0


[Site "https://www.chess.com"]

[Event "Titled Tuesday Blitz November 22 Late 2022"]
[White "Golubev, Mikhail"]
[Black "Goltsev, Dmitry"]
[WhiteFideId "14100983"]
[BlackFideId "24176710"]
[WhiteElo "2374"]
[BlackElo "2289"]
[Result "1/2-1/2"]
[Round "09"]
[TimeControl "180+1"]
[Date "2022.11.22"]
[WhiteClock "0:00:16"]
[BlackClock "0:01:24"]

1. e4 {[%clk 0:03:00]}  e6 {[%clk 0:03:00]} 2. d4 {[%clk 0:03:00]}  d5 {[%clk 0:03:01]} 3. Nc3 {[%clk 0:03:00]}  c5 {[%clk 0:03:01]} 4. exd5 {[%clk 0:02:52]}  exd5 {[%clk 0:03:02]} 5. Bb5+ {[%clk 0:02:44]}  Nc6 {[%clk 0:03:02]} 6. Nf3 {[%clk 0:02:40]}  Nf6 {[%clk 0:03:01]} 7. O-O {[%clk 0:02:38]}  Be7 {[%clk 0:03:01]} 8. dxc5 {[%clk 0:02:38]}  Bxc5 {[%clk 0:03:02]} 9. Qe2+ {[%clk 0:02:32]}  Be6 {[%clk 0:03:01]} 10. Ng5 {[%clk 0:02:23]}  O-O {[%clk 0:02:58]} 11. Nxe6 {[%clk 0:02:22]}  fxe6 {[%clk 0:02:59]} 12. Qxe6+ {[%clk 0:02:18]}  Kh8 {[%clk 0:02:59]} 13. Bxc6 {[%clk 0:02:09]}  bxc6 {[%clk 0:03:00]} 14. Na4 {[%clk 0:01:57]}  Bd6 {[%clk 0:02:57]} 15. Bg5 {[%clk 0:01:49]}  Qc7 {[%clk 0:02:56]} 16. Qh3 {[%clk 0:01:43]}  Ne4 {[%clk 0:02:53]} 17. Bh4 {[%clk 0:01:32]}  Rae8 {[%clk 0:02:32]} 18. Nc3 {[%clk 0:01:26]}  Qb6 {[%clk 0:02:20]} 19. Nxe4 {[%clk 0:01:14]}  Rxe4 {[%clk 0:02:21]} 20. b3 {[%clk 0:01:14]}  Re2 {[%clk 0:02:19]} 21. c4 {[%clk 0:01:11]}  Bc5 {[%clk 0:02:15]} 22. Qd3 {[%clk 0:00:40]}  Bxf2+ {[%clk 0:02:05]} 23. Kh1 {[%clk 0:00:39]}  Ree8 {[%clk 0:02:01]} 24. Bxf2 {[%clk 0:00:31]}  Rxf2 {[%clk 0:02:02]} 25. cxd5 {[%clk 0:00:29]}  cxd5 {[%clk 0:02:01]} 26. Qxd5 {[%clk 0:00:25]}  h6 {[%clk 0:02:01]} 27. h3 {[%clk 0:00:23]}  Ree2 {[%clk 0:01:57]} 28. Rxf2 {[%clk 0:00:16]}  Qxf2 {[%clk 0:01:58]} 29. Qd8+ {[%clk 0:00:15]}  Kh7 {[%clk 0:01:59]} 30. Qd3+ {[%clk 0:00:16]}  Kh8 {[%clk 0:01:58]} 31. Qd8+ {[%clk 0:00:16]}  Kh7 {[%clk 0:01:58]} 32. Qd3+ {[%clk 0:00:16]}  Kg8 {[%clk 0:01:42]} 33. Qd5+ {[%clk 0:00:17]}  Kh7 {[%clk 0:01:24]} 34. Qd3+ {[%clk 0:00:16]} 1/2-1/2


[Site "https://www.chess.com"]

[Event "Titled Tuesday Blitz November 22 Late 2022"]
[White "Gonzalez, Francisco Silva"]
[Black "Rios Escobar, Adan"]
[WhiteFideId "1512285"]
[BlackFideId "3403645"]
[WhiteElo "2159"]
[BlackElo "2328"]
[Result "0-1"]
[Round "09"]
[TimeControl "180+1"]
[Date "2022.11.23"]
[WhiteClock "0:00:21"]
[BlackClock "0:00:08"]

1. d4 {[%clk 0:02:53]}  Nf6 {[%clk 0:02:59]} 2. c4 {[%clk 0:02:53]}  g6 {[%clk 0:02:59]} 3. Nc3 {[%clk 0:02:52]}  Bg7 {[%clk 0:03:00]} 4. e4 {[%clk 0:02:51]}  d6 {[%clk 0:03:00]} 5. f3 {[%clk 0:02:51]}  O-O {[%clk 0:03:00]} 6. Be3 {[%clk 0:02:51]}  a6 {[%clk 0:03:01]} 7. Qd2 {[%clk 0:02:50]}  Nc6 {[%clk 0:02:55]} 8. Nge2 {[%clk 0:02:48]}  Na5 {[%clk 0:02:55]} 9. b3 {[%clk 0:02:41]}  b5 {[%clk 0:02:49]} 10. Nd1 {[%clk 0:02:37]}  c5 {[%clk 0:02:40]} 11. dxc5 {[%clk 0:02:33]}  Nxe4 {[%clk 0:02:35]} 12. fxe4 {[%clk 0:02:34]}  Bxa1 {[%clk 0:02:35]} 13. cxd6 {[%clk 0:02:28]}  exd6 {[%clk 0:02:31]} 14. c5 {[%clk 0:02:16]}  dxc5 {[%clk 0:02:23]} 15. Qxd8 {[%clk 0:01:59]}  Rxd8 {[%clk 0:02:21]} 16. Bxc5 {[%clk 0:02:00]}  Nc6 {[%clk 0:02:09]} 17. Ndc3 {[%clk 0:01:57]}  Be6 {[%clk 0:02:01]} 18. Kf2 {[%clk 0:01:50]}  Ne5 {[%clk 0:02:00]} 19. Be7 {[%clk 0:01:48]}  Rd2 {[%clk 0:01:54]} 20. Ke3 {[%clk 0:01:46]}  Rd3+ {[%clk 0:01:47]} 21. Kf4 {[%clk 0:01:43]}  Re8 {[%clk 0:01:22]} 22. Bf6 {[%clk 0:01:37]}  Nd7 {[%clk 0:01:12]} 23. Ng3 {[%clk 0:01:35]}  Rxc3 {[%clk 0:01:02]} 24. Bxc3 {[%clk 0:01:34]}  Bxc3 {[%clk 0:01:03]} 25. Bd3 {[%clk 0:01:32]}  Bd2+ {[%clk 0:00:53]} 26. Kf3 {[%clk 0:01:31]}  Ne5+ {[%clk 0:00:52]} 27. Ke2 {[%clk 0:01:30]}  Bf4 {[%clk 0:00:48]} 28. Bb1 {[%clk 0:01:14]}  Bg4+ {[%clk 0:00:47]} 29. Kf2 {[%clk 0:01:13]}  Rd8 {[%clk 0:00:43]} 30. Nf1 {[%clk 0:01:12]}  Rd1 {[%clk 0:00:34]} 31. h3 {[%clk 0:01:12]}  Be6 {[%clk 0:00:26]} 32. g3 {[%clk 0:00:53]}  Bh6 {[%clk 0:00:18]} 33. Ke2 {[%clk 0:00:54]}  Rxb1 {[%clk 0:00:18]} 34. g4 {[%clk 0:00:33]}  b4 {[%clk 0:00:17]} 35. Kf2 {[%clk 0:00:33]}  Bf4 {[%clk 0:00:17]} 36. Rg1 {[%clk 0:00:29]}  Rb2+ {[%clk 0:00:16]} 37. Ke1 {[%clk 0:00:29]}  Nf3+ {[%clk 0:00:13]} 38. Kd1 {[%clk 0:00:30]}  Nxg1 {[%clk 0:00:13]} 39. e5 {[%clk 0:00:24]}  Bd5 {[%clk 0:00:11]} 40. Nh2 {[%clk 0:00:23]}  Rxh2 {[%clk 0:00:10]} 41. e6 {[%clk 0:00:22]}  fxe6 {[%clk 0:00:08]} 42. h4 {[%clk 0:00:21]}  Bf3+ {[%clk 0:00:09]} 43. Ke1 {[%clk 0:00:21]}  Bg3+ {[%clk 0:00:09]} 44. Kf1 {[%clk 0:00:21]}  Re2 {[%clk 0:00:08]} 0-1


[Site "https://www.chess.com"]

[Event "Titled Tuesday Blitz November 22 Late 2022"]
[White "Graif, William"]
[Black "Young, Ryan"]
[WhiteFideId "2609835"]
[BlackFideId "2049945"]
[WhiteElo "2205"]
[BlackElo "2327"]
[Result "1/2-1/2"]
[Round "09"]
[TimeControl "180+1"]
[Date "2022.11.23"]
[WhiteClock "0:00:15"]
[BlackClock "0:00:21"]

1. e4 {[%clk 0:02:57]}  e5 {[%clk 0:02:59]} 2. Nf3 {[%clk 0:02:46]}  d6 {[%clk 0:02:59]} 3. d4 {[%clk 0:02:45]}  exd4 {[%clk 0:03:00]} 4. Bc4 {[%clk 0:02:28]}  Be7 {[%clk 0:02:57]} 5. c3 {[%clk 0:02:01]}  d3 {[%clk 0:02:50]} 6. Qb3 {[%clk 0:01:53]}  Nc6 {[%clk 0:02:20]} 7. Bxf7+ {[%clk 0:01:35]}  Kf8 {[%clk 0:02:20]} 8. Bxg8 {[%clk 0:01:12]}  Rxg8 {[%clk 0:02:20]} 9. O-O {[%clk 0:01:09]}  Qe8 {[%clk 0:02:05]} 10. Bf4 {[%clk 0:01:00]}  Qf7 {[%clk 0:02:03]} 11. Qxf7+ {[%clk 0:00:57]}  Kxf7 {[%clk 0:02:04]} 12. Rd1 {[%clk 0:00:54]}  h6 {[%clk 0:01:55]} 13. Rxd3 {[%clk 0:00:53]}  Be6 {[%clk 0:01:55]} 14. Nd4 {[%clk 0:00:47]}  Bc4 {[%clk 0:01:48]} 15. Rf3 {[%clk 0:00:44]}  Bf6 {[%clk 0:01:44]} 16. Nd2 {[%clk 0:00:29]}  Ba6 {[%clk 0:01:28]} 17. Re1 {[%clk 0:00:19]}  Rge8 {[%clk 0:01:15]} 18. Nf5 {[%clk 0:00:18]}  Kg8 {[%clk 0:01:05]} 19. Rfe3 {[%clk 0:00:18]}  b6 {[%clk 0:01:02]} 20. Bg3 {[%clk 0:00:19]}  Bb7 {[%clk 0:01:02]} 21. f4 {[%clk 0:00:19]}  Ne7 {[%clk 0:01:00]} 22. Nxe7+ {[%clk 0:00:19]}  Rxe7 {[%clk 0:01:00]} 23. e5 {[%clk 0:00:19]}  dxe5 {[%clk 0:01:01]} 24. fxe5 {[%clk 0:00:20]}  Bg5 {[%clk 0:01:01]} 25. R3e2 {[%clk 0:00:20]}  Rd8 {[%clk 0:01:01]} 26. Nf3 {[%clk 0:00:19]}  Bxf3 {[%clk 0:01:00]} 27. gxf3 {[%clk 0:00:20]}  Rf8 {[%clk 0:00:34]} 28. h4 {[%clk 0:00:17]}  Bf4 {[%clk 0:00:32]} 29. Kg2 {[%clk 0:00:16]}  Rf5 {[%clk 0:00:30]} 30. Bxf4 {[%clk 0:00:15]}  Rxf4 {[%clk 0:00:31]} 31. Kg3 {[%clk 0:00:15]}  Rf5 {[%clk 0:00:31]} 32. f4 {[%clk 0:00:14]}  h5 {[%clk 0:00:30]} 33. Rd1 {[%clk 0:00:14]}  Ref7 {[%clk 0:00:29]} 34. Re4 {[%clk 0:00:14]}  Re7 {[%clk 0:00:28]} 35. Rd8+ {[%clk 0:00:14]}  Kf7 {[%clk 0:00:29]} 36. Rc8 {[%clk 0:00:13]}  a5 {[%clk 0:00:28]} 37. e6+ {[%clk 0:00:12]}  Kg6 {[%clk 0:00:27]} 38. Rd8 {[%clk 0:00:11]}  Rf6 {[%clk 0:00:25]} 39. Rd7 {[%clk 0:00:11]}  Rexe6 {[%clk 0:00:20]} 40. Rxe6 {[%clk 0:00:11]}  Rxe6 {[%clk 0:00:21]} 41. Rxc7 {[%clk 0:00:11]}  Re2 {[%clk 0:00:21]} 42. Rc6+ {[%clk 0:00:12]}  Kf5 {[%clk 0:00:20]} 43. Rxb6 {[%clk 0:00:13]}  Re3+ {[%clk 0:00:19]} 44. Kf2 {[%clk 0:00:13]}  Rd3 {[%clk 0:00:20]} 45. c4 {[%clk 0:00:12]}  Kxf4 {[%clk 0:00:20]} 46. c5 {[%clk 0:00:11]}  Rd2+ {[%clk 0:00:20]} 47. Ke1 {[%clk 0:00:11]}  Rc2 {[%clk 0:00:21]} 48. Rb5 {[%clk 0:00:10]}  a4 {[%clk 0:00:20]} 49. Rb4+ {[%clk 0:00:09]}  Ke3 {[%clk 0:00:21]} 50. Kd1 {[%clk 0:00:09]}  Rxc5 {[%clk 0:00:20]} 51. Rxa4 {[%clk 0:00:10]}  Rf5 {[%clk 0:00:18]} 52. Kc2 {[%clk 0:00:08]}  Rf2+ {[%clk 0:00:13]} 53. Kc3 {[%clk 0:00:08]}  Rf1 {[%clk 0:00:12]} 54. Ra5 {[%clk 0:00:08]}  g6 {[%clk 0:00:11]} 55. Rg5 {[%clk 0:00:08]}  Rf4 {[%clk 0:00:08]} 56. Rxg6 {[%clk 0:00:08]}  Rxh4 {[%clk 0:00:09]} 57. b4 {[%clk 0:00:08]}  Rh1 {[%clk 0:00:09]} 58. Kb3 {[%clk 0:00:08]}  h4 {[%clk 0:00:09]} 59. b5 {[%clk 0:00:08]}  h3 {[%clk 0:00:10]} 60. Rh6 {[%clk 0:00:08]}  h2 {[%clk 0:00:11]} 61. Kb2 {[%clk 0:00:07]}  Kd4 {[%clk 0:00:10]} 62. b6 {[%clk 0:00:07]}  Rg1 {[%clk 0:00:08]} 63. Rxh2 {[%clk 0:00:07]}  Rg7 {[%clk 0:00:07]} 64. Rc2 {[%clk 0:00:07]}  Rb7 {[%clk 0:00:06]} 65. Rc6 {[%clk 0:00:07]}  Kd5 {[%clk 0:00:07]} 66. Rh6 {[%clk 0:00:08]}  Kc5 {[%clk 0:00:08]} 67. Kb3 {[%clk 0:00:07]}  Rxb6+ {[%clk 0:00:08]} 68. Rxb6 {[%clk 0:00:07]}  Kxb6 {[%clk 0:00:09]} 69. Kb4 {[%clk 0:00:07]}  Ka7 {[%clk 0:00:10]} 70. Ka5 {[%clk 0:00:07]}  Ka8 {[%clk 0:00:11]} 71. Ka6 {[%clk 0:00:08]}  Kb8 {[%clk 0:00:12]} 72. Kb6 {[%clk 0:00:08]}  Ka8 {[%clk 0:00:13]} 73. Ka6 {[%clk 0:00:09]}  Kb8 {[%clk 0:00:13]} 74. a4 {[%clk 0:00:09]}  Ka8 {[%clk 0:00:14]} 75. a5 {[%clk 0:00:10]}  Kb8 {[%clk 0:00:15]} 76. Kb6 {[%clk 0:00:11]}  Ka8 {[%clk 0:00:16]} 77. Kb5 {[%clk 0:00:11]}  Ka7 {[%clk 0:00:16]} 78. a6 {[%clk 0:00:11]}  Ka8 {[%clk 0:00:17]} 79. Ka5 {[%clk 0:00:12]}  Ka7 {[%clk 0:00:17]} 80. Kb5 {[%clk 0:00:12]}  Ka8 {[%clk 0:00:18]} 81. Kb6 {[%clk 0:00:13]}  Kb8 {[%clk 0:00:19]} 82. Kc6 {[%clk 0:00:14]}  Ka8 {[%clk 0:00:20]} 83. Kd5 {[%clk 0:00:14]}  Ka7 {[%clk 0:00:20]} 84. Ke4 {[%clk 0:00:15]}  Kxa6 {[%clk 0:00:21]} 1/2-1/2


[Site "https://www.chess.com"]

[Event "Titled Tuesday Blitz November 22 Late 2022"]
[White "Gritsenko, Nikolai"]
[Black "Djordjevic, Vuk"]
[WhiteFideId "14112493"]
[BlackFideId "902098"]
[WhiteElo "2389"]
[BlackElo "2456"]
[Result "1-0"]
[Round "09"]
[TimeControl "180+1"]
[Date "2022.11.22"]
[WhiteClock "0:00:30"]
[BlackClock "0:00:01"]

1. b3 {[%clk 0:03:00]}  e5 {[%clk 0:02:58]} 2. Bb2 {[%clk 0:03:00]}  Nc6 {[%clk 0:02:58]} 3. c4 {[%clk 0:03:01]}  g6 {[%clk 0:02:57]} 4. e3 {[%clk 0:03:01]}  Bg7 {[%clk 0:02:57]} 5. Nf3 {[%clk 0:03:01]}  Nge7 {[%clk 0:02:57]} 6. d4 {[%clk 0:03:00]}  exd4 {[%clk 0:02:54]} 7. Nxd4 {[%clk 0:03:00]}  O-O {[%clk 0:02:53]} 8. Nxc6 {[%clk 0:03:00]}  Nxc6 {[%clk 0:02:52]} 9. Bxg7 {[%clk 0:02:59]}  Kxg7 {[%clk 0:02:53]} 10. Nc3 {[%clk 0:02:56]}  d6 {[%clk 0:02:52]} 11. Qd2 {[%clk 0:02:56]}  Bf5 {[%clk 0:02:31]} 12. Be2 {[%clk 0:02:55]}  Qg5 {[%clk 0:02:25]} 13. O-O {[%clk 0:02:30]}  Rae8 {[%clk 0:02:13]} 14. Kh1 {[%clk 0:02:24]}  h5 {[%clk 0:02:05]} 15. Bf3 {[%clk 0:02:07]}  Bg4 {[%clk 0:01:53]} 16. Bd5 {[%clk 0:02:00]}  h4 {[%clk 0:01:42]} 17. h3 {[%clk 0:01:55]}  Bf5 {[%clk 0:01:32]} 18. Rad1 {[%clk 0:01:49]}  Qf6 {[%clk 0:01:19]} 19. Nb5 {[%clk 0:01:38]}  Re7 {[%clk 0:01:16]} 20. Nd4 {[%clk 0:01:33]}  Nxd4 {[%clk 0:01:05]} 21. Qxd4 {[%clk 0:01:32]}  b6 {[%clk 0:00:48]} 22. Qxf6+ {[%clk 0:01:19]}  Kxf6 {[%clk 0:00:48]} 23. Rd4 {[%clk 0:01:19]}  Rh8 {[%clk 0:00:25]} 24. Kg1 {[%clk 0:01:16]}  a5 {[%clk 0:00:24]} 25. Re1 {[%clk 0:01:12]}  Be6 {[%clk 0:00:23]} 26. f3 {[%clk 0:01:09]}  Bxd5 {[%clk 0:00:21]} 27. cxd5 {[%clk 0:01:09]}  Rhe8 {[%clk 0:00:19]} 28. Kf2 {[%clk 0:01:08]}  g5 {[%clk 0:00:13]} 29. Rd3 {[%clk 0:01:00]}  Ra8 {[%clk 0:00:10]} 30. a3 {[%clk 0:00:57]}  a4 {[%clk 0:00:04]} 31. b4 {[%clk 0:00:57]}  b5 {[%clk 0:00:04]} 32. Rc3 {[%clk 0:00:53]}  Ra6 {[%clk 0:00:04]} 33. Rec1 {[%clk 0:00:52]}  Ra7 {[%clk 0:00:04]} 34. Rd3 {[%clk 0:00:50]}  Rb7 {[%clk 0:00:04]} 35. Rc6 {[%clk 0:00:49]}  Kg6 {[%clk 0:00:04]} 36. Rd4 {[%clk 0:00:48]}  f6 {[%clk 0:00:04]} 37. Ke2 {[%clk 0:00:48]}  Re5 {[%clk 0:00:04]} 38. Kd3 {[%clk 0:00:48]}  Kf7 {[%clk 0:00:04]} 39. Rc3 {[%clk 0:00:39]}  Re8 {[%clk 0:00:03]} 40. Re4 {[%clk 0:00:38]}  Rf8 {[%clk 0:00:03]} 41. Rc6 {[%clk 0:00:31]}  Rg8 {[%clk 0:00:01]} 42. Re6 {[%clk 0:00:30]} 1-0


[Site "https://www.chess.com"]

[Event "Titled Tuesday Blitz November 22 Late 2022"]
[White "Gurevich, Dmitry"]
[Black "Zhu, Jiner"]
[WhiteFideId "2000407"]
[BlackFideId "8608059"]
[WhiteElo "2506"]
[BlackElo "2384"]
[Result "1/2-1/2"]
[Round "09"]
[TimeControl "180+1"]
[Date "2022.11.22"]
[WhiteClock "0:00:40"]
[BlackClock "0:01:04"]

1. d4 {[%clk 0:03:00]}  Nf6 {[%clk 0:02:59]} 2. c4 {[%clk 0:03:00]}  g6 {[%clk 0:02:59]} 3. Nc3 {[%clk 0:02:59]}  Bg7 {[%clk 0:02:59]} 4. e4 {[%clk 0:03:00]}  d6 {[%clk 0:02:59]} 5. Nf3 {[%clk 0:03:00]}  O-O {[%clk 0:02:59]} 6. Be2 {[%clk 0:03:00]}  e5 {[%clk 0:02:52]} 7. O-O {[%clk 0:02:59]}  Bg4 {[%clk 0:02:49]} 8. dxe5 {[%clk 0:02:55]}  Bxf3 {[%clk 0:02:43]} 9. Bxf3 {[%clk 0:02:47]}  dxe5 {[%clk 0:02:42]} 10. Qxd8 {[%clk 0:02:46]}  Rxd8 {[%clk 0:02:43]} 11. Nd5 {[%clk 0:02:39]}  Na6 {[%clk 0:02:38]} 12. Be3 {[%clk 0:02:34]}  c6 {[%clk 0:02:37]} 13. Nxf6+ {[%clk 0:02:32]}  Bxf6 {[%clk 0:02:37]} 14. Rfd1 {[%clk 0:02:26]}  Be7 {[%clk 0:02:37]} 15. a3 {[%clk 0:02:23]}  h5 {[%clk 0:02:33]} 16. b4 {[%clk 0:02:20]}  Nc7 {[%clk 0:02:33]} 17. Be2 {[%clk 0:02:11]}  f6 {[%clk 0:02:25]} 18. f3 {[%clk 0:02:07]}  Kf7 {[%clk 0:02:20]} 19. c5 {[%clk 0:02:07]}  Ke8 {[%clk 0:02:20]} 20. Bc4 {[%clk 0:02:06]}  Rxd1+ {[%clk 0:02:16]} 21. Rxd1 {[%clk 0:02:05]}  a5 {[%clk 0:02:16]} 22. h4 {[%clk 0:01:52]}  axb4 {[%clk 0:02:10]} 23. axb4 {[%clk 0:01:52]}  Ra4 {[%clk 0:02:10]} 24. Rb1 {[%clk 0:01:50]}  Nb5 {[%clk 0:02:05]} 25. Bxb5 {[%clk 0:01:47]}  cxb5 {[%clk 0:02:06]} 26. Rb3 {[%clk 0:01:39]}  Kd7 {[%clk 0:02:04]} 27. Kf2 {[%clk 0:01:31]}  Kc6 {[%clk 0:02:03]} 28. g4 {[%clk 0:01:30]}  Ra2+ {[%clk 0:02:01]} 29. Kg3 {[%clk 0:01:29]}  Rc2 {[%clk 0:02:01]} 30. gxh5 {[%clk 0:01:25]}  gxh5 {[%clk 0:02:01]} 31. f4 {[%clk 0:01:23]}  Rc4 {[%clk 0:02:00]} 32. Kf3 {[%clk 0:01:22]}  Bd8 {[%clk 0:01:58]} 33. fxe5 {[%clk 0:01:17]}  fxe5 {[%clk 0:01:58]} 34. Bg5 {[%clk 0:01:17]}  Bc7 {[%clk 0:01:52]} 35. Be3 {[%clk 0:01:08]}  Rc2 {[%clk 0:01:36]} 36. Bg5 {[%clk 0:01:03]}  b6 {[%clk 0:01:31]} 37. Be3 {[%clk 0:00:55]}  bxc5 {[%clk 0:01:29]} 38. Bxc5 {[%clk 0:00:51]}  Rd2 {[%clk 0:01:11]} 39. Ra3 {[%clk 0:00:41]}  Kd7 {[%clk 0:00:55]} 40. Ra7 {[%clk 0:00:36]}  Rd3+ {[%clk 0:00:37]} 41. Ke2 {[%clk 0:00:34]}  Rc3 {[%clk 0:00:38]} 42. Bb6 {[%clk 0:00:31]}  Kd6 {[%clk 0:00:36]} 43. Bxc7+ {[%clk 0:00:29]}  Rxc7 {[%clk 0:00:36]} 44. Rxc7 {[%clk 0:00:27]}  Kxc7 {[%clk 0:00:36]} 45. Kf1 {[%clk 0:00:26]}  Kc6 {[%clk 0:00:37]} 46. Kg1 {[%clk 0:00:26]}  Kc7 {[%clk 0:00:37]} 47. Kh1 {[%clk 0:00:26]}  Kc6 {[%clk 0:00:38]} 48. Kh2 {[%clk 0:00:26]}  Kc7 {[%clk 0:00:39]} 49. Kg2 {[%clk 0:00:27]}  Kc6 {[%clk 0:00:40]} 50. Kf2 {[%clk 0:00:27]}  Kc7 {[%clk 0:00:41]} 51. Ke2 {[%clk 0:00:28]}  Kc6 {[%clk 0:00:42]} 52. Kd2 {[%clk 0:00:28]}  Kc7 {[%clk 0:00:43]} 53. Kc2 {[%clk 0:00:29]}  Kc6 {[%clk 0:00:44]} 54. Kb2 {[%clk 0:00:29]}  Kc7 {[%clk 0:00:45]} 55. Ka2 {[%clk 0:00:29]}  Kc6 {[%clk 0:00:46]} 56. Ka1 {[%clk 0:00:30]}  Kc7 {[%clk 0:00:46]} 57. Kb1 {[%clk 0:00:30]}  Kc6 {[%clk 0:00:47]} 58. Kc1 {[%clk 0:00:30]}  Kc7 {[%clk 0:00:48]} 59. Kd1 {[%clk 0:00:31]}  Kc6 {[%clk 0:00:49]} 60. Ke1 {[%clk 0:00:31]}  Kc7 {[%clk 0:00:50]} 61. Kf1 {[%clk 0:00:32]}  Kc6 {[%clk 0:00:51]} 62. Kg1 {[%clk 0:00:32]}  Kc7 {[%clk 0:00:52]} 63. Kh1 {[%clk 0:00:33]}  Kc6 {[%clk 0:00:53]} 64. Kh2 {[%clk 0:00:33]}  Kc7 {[%clk 0:00:54]} 65. Kg2 {[%clk 0:00:33]}  Kc6 {[%clk 0:00:55]} 66. Kf2 {[%clk 0:00:34]}  Kc7 {[%clk 0:00:55]} 67. Ke2 {[%clk 0:00:34]}  Kc6 {[%clk 0:00:56]} 68. Kd2 {[%clk 0:00:35]}  Kc7 {[%clk 0:00:57]} 69. Kc2 {[%clk 0:00:35]}  Kc6 {[%clk 0:00:58]} 70. Kb2 {[%clk 0:00:36]}  Kc7 {[%clk 0:00:59]} 71. Ka2 {[%clk 0:00:36]}  Kc6 {[%clk 0:01:00]} 72. Ka1 {[%clk 0:00:37]}  Kc7 {[%clk 0:01:01]} 73. Kb1 {[%clk 0:00:38]}  Kc6 {[%clk 0:01:02]} 74. Kc1 {[%clk 0:00:38]}  Kc7 {[%clk 0:01:03]} 75. Kd1 {[%clk 0:00:39]}  Kc6 {[%clk 0:01:03]} 76. Ke1 {[%clk 0:00:39]}  Kc7 {[%clk 0:01:04]} 77. Kf1 {[%clk 0:00:40]} 1/2-1/2


[Site "https://www.chess.com"]

[Event "Titled Tuesday Blitz November 22 Late 2022"]
[White "Kopylov, Alexander A."]
[Black "Manelyuk, Daniil"]
[WhiteFideId "4164857"]
[BlackFideId "44173920"]
[WhiteElo "2436"]
[BlackElo "2209"]
[Result "1-0"]
[Round "09"]
[TimeControl "180+1"]
[Date "2022.11.22"]
[WhiteClock "0:01:06"]
[BlackClock "0:00:02"]

1. e4 {[%clk 0:03:00]}  e6 {[%clk 0:02:59]} 2. d4 {[%clk 0:02:59]}  d5 {[%clk 0:02:59]} 3. Nd2 {[%clk 0:03:00]}  Be7 {[%clk 0:02:58]} 4. Bd3 {[%clk 0:02:57]}  Nf6 {[%clk 0:02:56]} 5. e5 {[%clk 0:02:56]}  Nfd7 {[%clk 0:02:56]} 6. Ne2 {[%clk 0:02:56]}  c5 {[%clk 0:02:57]} 7. c3 {[%clk 0:02:56]}  Nc6 {[%clk 0:02:57]} 8. O-O {[%clk 0:02:55]}  cxd4 {[%clk 0:02:37]} 9. cxd4 {[%clk 0:02:54]}  O-O {[%clk 0:02:16]} 10. f4 {[%clk 0:02:53]}  f5 {[%clk 0:02:11]} 11. a3 {[%clk 0:02:51]}  a5 {[%clk 0:02:00]} 12. h3 {[%clk 0:02:41]}  b6 {[%clk 0:02:00]} 13. g4 {[%clk 0:02:41]}  fxg4 {[%clk 0:01:54]} 14. hxg4 {[%clk 0:02:40]}  Ba6 {[%clk 0:01:54]} 15. Nf3 {[%clk 0:02:39]}  Bxd3 {[%clk 0:01:26]} 16. Qxd3 {[%clk 0:02:40]}  Qc8 {[%clk 0:01:20]} 17. Nc3 {[%clk 0:02:29]}  Qa6 {[%clk 0:01:12]} 18. Qb5 {[%clk 0:02:16]}  Rfc8 {[%clk 0:01:03]} 19. f5 {[%clk 0:02:09]}  Qxb5 {[%clk 0:00:46]} 20. Nxb5 {[%clk 0:02:10]}  Nf8 {[%clk 0:00:31]} 21. Bg5 {[%clk 0:02:05]}  Bxg5 {[%clk 0:00:18]} 22. Nxg5 {[%clk 0:02:06]}  Na7 {[%clk 0:00:11]} 23. Nd6 {[%clk 0:02:05]}  Rc2 {[%clk 0:00:08]} 24. fxe6 {[%clk 0:02:05]}  Nc6 {[%clk 0:00:08]} 25. Rac1 {[%clk 0:01:52]}  Rxc1 {[%clk 0:00:07]} 26. Rxc1 {[%clk 0:01:52]}  Nxd4 {[%clk 0:00:04]} 27. Nf5 {[%clk 0:01:05]}  Ne2+ {[%clk 0:00:02]} 28. Kf2 {[%clk 0:01:05]}  Nxc1 {[%clk 0:00:03]} 29. Ne7+ {[%clk 0:01:05]}  Kh8 {[%clk 0:00:02]} 30. Nf7# {[%clk 0:01:06]} 1-0


[Site "https://www.chess.com"]